[Event "Charlotte GM-A May 2022"]
[Site "Charlotte"]
[Date "2022.05.07"]
[Round "5.1"]
[White "Williams, Justus"]
[Black "Korley, Kassa"]
[Result "1-0"]
[ECO "E14"]
[WhiteElo "2417"]
[BlackElo "2413"]
[Annotator "TA"]
[PlyCount "125"]
[EventDate "2022.05.04"]
[EventType "tourn"]
[EventCountry "USA"]
[SourceTitle "playchess.com"]
[Source "ChessBase"]
[SourceQuality "1"]
[TimeControl "5400+30"]

{[%evp 22,125,1,0,0,0,0,-72,-3,-4,0,-52,-62,-53,-72,-92,-106,-242,-245,-277,-251,-245,-214,-155,-139,-141,-149,-138,-153,-137,-120,-135,-95,-93,-110,-383,-363,-348,-134,-134,-150,-165,-181,-166,-166,-158,-147,-288,-288,-322,-339,-330,-241,-235,-234,-247,-96,-251,-87,-83,-57,-52,0,-79,-23,-24,-24,-24,-24,-24,-26,-126,0,-8,0,0,0,-5002,631,648,12840,12835,12836,6609,12836,12836,12835,12835,12838,12839,12840,9108,12841,12839,12839,11346,1774,1171,12842,12842,12846,12846,12847,12847,12848,12848]} 1. Nf3 {[%emt 0:00:08]} d5 {[%emt 0:00:04]} 2. e3 {[%emt 0:00:52]} Nf6 {[%emt 0:00:05]} 3. c4 {[%emt 0:00:09]} e6 {[%emt 0:00:05]} 4. b3 {[%emt 0:03:04]} Be7 {[%emt 0:00:06]} 5. Bb2 {[%emt 0:00:39]} O-O {[%emt 0:00:06]} 6. Nc3 {[%emt 0:00:38]} dxc4 {[%emt 0:00:10]} 7. bxc4 {[%emt 0:03:30]} c5 {[%emt 0:00:06]} 8. d4 {[%emt 0:02:38]} cxd4 {[%emt 0:01:15]} 9. exd4 {[%emt 0:00:41]} b6 {[%emt 0:00:11]} 10. Bd3 {[%emt 0:00:47]} Bb7 {[%emt 0:05:37]} 11. O-O {[%emt 0:01:38]} Nc6 {[%emt 0:02:38]} 12. Rc1 {[%emt 0:03:36]} a6 {[%emt 0:09:58] E14: Queen's Indian: Classical Variation (4 e3).} 13. Bb1 {[%emt 0:07:30] [#]} Na5 $146 {[%emt 0:00:47]} ({Predecessor:} 13... Rc8 14. d5 Na5 15. dxe6 Qxd1 16. exf7+ Rxf7 17. Rfxd1 Nxc4 18. Ba1 Bc5 19. Na4 Ba3 {0-1 (45) Schwark,M (1809)-Raasch,J (2095) Cologne 2004}) 14. Qd3 {[%emt 0:02:13]} (14. Ne5 $11 {keeps the balance.}) 14... b5 {[%emt 0:20:17]} (14... Bxf3 $17 15. gxf3 b5 16. cxb5 axb5 17. Nxb5 g6) 15. cxb5 $11 {[%emt 0:06:19]} Bxf3 {[%emt 0:05:35]} 16. gxf3 {[%emt 0:10:54]} ({Better is} 16. Qxf3 $11 Nc4 17. Rc2) 16... axb5 $15 {[%emt 0:01:01]} 17. Nxb5 {[%emt 0:06:20]} g6 {[%emt 0:07:57]} 18. Rfe1 {[%emt 0:03:52][%cal Od4d5]} Nd5 {[%emt 0:00:19][%mdl 1024] Black has strong compensation.} 19. Re4 {[%emt 0:01:02]} (19. f4 $17) 19... Bg5 $1 $19 {[%emt 0:02:28]} 20. Rce1 {[%emt 0:06:29]} Bf4 {[%emt 0:01:05]} 21. Qf1 {[%emt 0:05:46]} Rc8 {[%emt 0:04:47]} (21... Qh4 $2 22. Qg2) 22. Ba3 {[%emt 0:03:10]} Qh4 $1 {[%emt 0:11:57][%csl Gf4][%cal Rh4h2]} 23. Qg2 {[%emt 0:03:12]} Rfd8 {[%emt 0:00:10]} 24. Bd6 {[%emt 0:07:48]} Qh6 {[%emt 0:01:53]} 25. Bxf4 {[%emt 0:02:30]} Nxf4 {[%emt 0:00:07]} 26. Qg3 {[%emt 0:01:54]} Nh5 {[%emt 0:01:29] Pair of Knights!} 27. Qh4 {[%emt 0:01:59]} Nc4 {[%emt 0:01:21]} 28. Na7 $2 {[%emt 0:02:58][%mdl 8192]} (28. a4 $17) 28... Nd2 {[%emt 0:22:56]} 29. R4e3 {[%emt 0:01:10] [#]} g5 $2 {[%emt 0:00:00]} (29... Rxd4 $3 $19 {[%mdl 512]} 30. Qxd4 Qg5+ 31. Kh1 Nf4 $1 {[%mdl 512]} 32. Qxf4 Qxf4 33. Nxc8 Nxf3 34. Ne7+ Kg7 35. Rxf3 Qxf3+ 36. Kg1 Qg4+ 37. Kf1 Qc4+ 38. Re2 Qb4) 30. Qh3 $17 {[%emt 0:00:11]} Rc4 {[%emt 0:00:00]} 31. Nb5 {[%emt 0:02:39]} Nxb1 {[%emt 0:00:00]} 32. Rxb1 {[%emt 0:00:09]} Qg6 {[%emt 0:00:00]} 33. Qf1 {[%emt 0:00:28]} Rc2 {[%emt 0:00:00]} 34. Ra1 {[%emt 0:01:03]} (34. Nc3 $17 {is a better defense.}) 34... Nf4 $19 {[%emt 0:00:00]} 35. Kh1 {[%emt 0:04:47]} Qh5 $1 {[%emt 0:00:00] And now ...Nh3 would win.} 36. Nc3 {[%emt 0:00:18]} Rxd4 {[%emt 0:00:00]} 37. Ne4 {[%emt 0:00:12] aiming for Nf6+.} Qh4 {[%emt 0:00:00]} 38. Qb1 {[%emt 0:02:04]} Rc8 {[%emt 0:03:35]} (38... Rdc4 $19 {and Black stays clearly on top. White must now prevent ...Qh3.} 39. Qg1 h6) 39. a4 $2 {[%emt 0:02:55]} (39. Qb5 $17) 39... Rcd8 $2 {[%emt 0:00:39]} (39... Qh3 40. Qg1 h6 41. Qg3 $19) (39... f5 $1 $19 {[%cal Rf5e4] has better winning chances.} 40. Ng3 Rd2) 40. Qg1 $17 {[%emt 0:00:19]} h6 {[%emt 0:00:38] Threatens to win with ...f5.} 41. a5 {[%emt 0:01:09]} Qh3 {[%emt 0:00:38]} (41... f5 $15 42. Nc3 Rd2) 42. Qg3 {[%emt 0:00:11]} (42. Qg4 $1 $11) 42... Ra4 {[%emt 0:00:46]} 43. Ree1 $11 {[%emt 0:00:27]} Rxa1 {[%emt 0:00:25]} 44. Rxa1 {[%emt 0:00:02][%cal Oe4g5]} Qf5 {[%emt 0:00:20] Hoping for ...Ne2.} 45. h4 {[%emt 0:01:08][%cal Rh4g5]} Qe5 {[%emt 0:00:50]} 46. Rc1 {[%emt 0:01:04] [#]} (46. Rb1 $1 $11) 46... Qb2 {[%emt 0:00:36]} ({But not} 46... Qxa5 $6 47. hxg5 hxg5 48. Nxg5 $11) (46... f6 $1 $17 {Strongly threatening ...Kf7.} 47. a6 Ra8) 47. Rg1 $132 {[%emt 0:00:12][%mdl 2048] Qxf4 is the strong threat. White is not keeping still} Ne2 {[%emt 0:00:17]} 48. Qc7 {[%emt 0:00:07]} Qd4 {[%emt 0:00:19]} 49. Rg4 {[%emt 0:00:41][%mdl 8192]} (49. Re1 $11 Nf4 50. hxg5 hxg5 51. Kg1 (51. Nxg5 Qh8+ 52. Kg1 Qf6 $11) (51. Qe7 Rd5 $11)) 49... Qd3 $4 {[%emt 0:01:27][%mdl 8192]} (49... f5 $2 {[#]} 50. Nxg5 $1 Qd7 51. Nxe6+ fxg4 52. Qxd8+ Qxd8 53. Nxd8 $18) (49... Qa1+ $19 50. Kh2 Rd1) 50. Kh2 $18 {[%emt 0:00:40] White is clearly winning.} Nf4 {[%emt 0:00:00]} 51. Qxf4 {[%emt 0:00:24]} f5 {[%emt 0:00:10]} 52. Rg3 {[%emt 0:01:11][%cal Oh4g5]} fxe4 {[%emt 0:00:46]} 53. hxg5 {[%emt 0:00:03][%mdl 4096] Endgame KQR-KQR} h5 {[%emt 0:00:14]} 54. g6 {[%emt 0:00:22] Intending Qf7+ and mate.} Qd7 {[%emt 0:00:26] Prevents Qf7+.} 55. g7 {[%emt 0:00:54]} Qd2 {[%emt 0:00:07]} 56. Qxe4 {[%emt 0:00:33]} Qd6 {[%emt 0:01:13]} 57. f4 {[%emt 0:00:22]} h4 {[%emt 0:00:21]} 58. Rg4 {[%emt 0:00:12]} Qd5 {[%emt 0:00:32]} 59. Qe5 {[%emt 0:00:54]} Ra8 {[%emt 0:00:38]} 60. Qf6 {[%emt 0:00:42]} Qf5 {[%emt 0:00:06]} 61. Qxh4 {[%emt 0:00:06] Qh8+ would kill now.} Kf7 {[%emt 0:00:49]} 62. g8=Q+ {[%emt 0:01:35]} Rxg8 {[%emt 0:00:04]} 63. Rxg8 {[%emt 0:00:00] Weighted Error Value: White=0.57/Black=0.49} 1-0

[Event "Charlotte GM-A May 2022"]
[Site "Charlotte"]
[Date "2022.05.07"]
[Round "5.2"]
[White "Sheng, Joshua"]
[Black "Stremavicius, Titas"]
[Result "1/2-1/2"]
[ECO "B45"]
[WhiteElo "2487"]
[BlackElo "2508"]
[Annotator "TA"]
[PlyCount "57"]
[EventDate "2022.05.04"]
[EventType "tourn"]
[EventCountry "USA"]
[SourceTitle "playchess.com"]
[Source "ChessBase"]
[SourceQuality "1"]
[TimeControl "5400+30"]

{[%evp 21,57,9,29,16,23,40,29,43,32,31,28,27,42,27,59,62,63,58,56,59,69,39,65,60,62,37,47,35,47,37,47,38,51,27,27,27,27,10]} 1. e4 {[%emt 0:00:03]} c5 {[%emt 0:00:09]} 2. Nf3 {[%emt 0:00:02]} Nc6 {[%emt 0:00:09]} 3. d4 {[%emt 0:00:02]} cxd4 {[%emt 0:00:11]} 4. Nxd4 {[%emt 0:00:02]} Nf6 {[%emt 0:00:13]} 5. Nc3 {[%emt 0:00:04]} e6 {[%emt 0:00:10]} 6. Nxc6 {[%emt 0:00:15]} bxc6 {[%emt 0:00:10]} 7. e5 {[%emt 0:00:18]} Nd5 {[%emt 0:00:09]} 8. Ne4 {[%emt 0:00:02]} Qc7 {[%emt 0:00:11]} 9. f4 {[%emt 0:00:05]} Qa5+ {[%emt 0:00:26]} 10. Bd2 {[%emt 0:00:51]} Qb6 {[%emt 0:00:21]} 11. Bd3 {[%emt 0:01:55]} Be7 {[%emt 0:01:43]} (11... Nb4 $5 {[%cal Rb4d3]}) 12. Qe2 {[%emt 0:00:23] B45: Sicilian Four Knights.} f5 {[%emt 0:01:40]} 13. exf6 {[%emt 0:00:02]} Nxf6 {[%emt 0:00:09]} 14. Bc3 {[%emt 0:00:19]} O-O {[%emt 0:00:33]} 15. Nxf6+ {[%emt 0:00:26]} (15. Rf1 {is more complex.} Nd5 16. Be5 Nb4 17. O-O-O) 15... Bxf6 {[%emt 0:00:09]} 16. Bxf6 {[%emt 0:00:01]} (16. Qe4 Bxc3+ 17. bxc3 Rf5 $15) 16... Rxf6 {[%emt 0:00:28]} 17. O-O-O {[%emt 0:00:22]} d5 {[%emt 0:01:59]} 18. g3 {[%emt 0:06:23] [#]} ({Don't play} 18. Qh5 Qe3+ 19. Kb1 g6 $11) 18... Bd7 $146 {[%emt 0:04:43]} ({Predecessor:} 18... Bb7 19. g4 Qc7 20. Rdf1 Qf7 21. Qe5 Rf8 22. Rf3 Rxf4 23. Bf5 Rxf5 24. gxf5 exf5 {1-0 (45) Gebur,T (2360)-Troia,E (2275) ICCF email 2014}) 19. Qe5 {[%emt 0:09:36]} Qb8 {[%emt 0:00:26]} 20. Rhe1 {[%emt 0:02:22]} Be8 {[%emt 0:05:01]} 21. Qc3 {[%emt 0:06:57] White is more active.} a5 {[%emt 0:06:06]} 22. Re5 {[%emt 0:02:04]} Qb4 {[%emt 0:12:37]} 23. Qe1 {[%emt 0:01:02]} Rb8 {[%emt 0:01:26]} 24. b3 {[%emt 0:00:32]} Bd7 {[%emt 0:08:50]} 25. Kb2 {[%emt 0:02:01]} h6 {[%emt 0:01:35]} 26. h4 {[%emt 0:03:29]} Kf8 {[%emt 0:08:06]} 27. Bf1 {[%emt 0:12:35]} (27. c4 $5) 27... Qxe1 {[%emt 0:02:02]} 28. Rdxe1 {[%emt 0:01:12]} Ke7 {[%emt 0:01:13]} 29. Bd3 {[%emt 0:09:40] Weighted Error Value: White=0.06 (flawless) /Black=0.07 (flawless)} 1/2-1/2

[Event "Charlotte GM-A May 2022"]
[Site "Charlotte"]
[Date "2022.05.07"]
[Round "5.3"]
[White "Liang, Jason"]
[Black "Song, Micheal"]
[Result "1-0"]
[ECO "A80"]
[WhiteElo "2432"]
[BlackElo "2408"]
[Annotator "TA"]
[PlyCount "69"]
[EventDate "2022.05.04"]
[EventType "tourn"]
[EventCountry "USA"]
[SourceTitle "playchess.com"]
[Source "ChessBase"]
[SourceQuality "1"]
[TimeControl "5400+30"]

{[%evp 9,69,45,39,36,33,34,42,47,56,64,73,32,13,0,0,-42,-50,-42,99,93,73,88,99,61,68,3,39,6,13,0,0,-31,0,-54,-57,-115,-28,-33,-20,-102,-20,-20,0,0,0,0,0,-9,42,-14,0,-68,-13,-114,-117,-106,87,93,340,312,1216,1106]} 1. d4 {[%emt 0:00:03]} f5 {[%emt 0:00:47]} 2. Nc3 {[%emt 0:00:10]} Nf6 {[%emt 0:00:46]} 3. Bf4 {[%emt 0:00:12]} d6 {[%emt 0:01:24]} 4. Qd3 {[%emt 0:00:28]} g6 {[%emt 0:05:51] [#]} 5. e4 $146 {[%emt 0:00:35]} ({Predecessor:} 5. O-O-O Bg7 6. h4 c6 7. e4 b5 8. a3 a5 9. e5 dxe5 10. Bxe5 b4 11. Na4 {1-0 (49) Wochnik,M (2135)-Thorn Leeson,J (2162) ICCF email 2003}) 5... Bg7 {[%emt 0:02:14]} 6. O-O-O {[%emt 0:04:38] A80: Dutch Defence: Unusual White second moves.} fxe4 {[%emt 0:11:39]} 7. Nxe4 {[%emt 0:00:11]} Nxe4 {[%emt 0:00:59]} 8. Qxe4 {[%emt 0:00:07] White is slightly better.} Nd7 {[%emt 0:00:08]} 9. Bc4 {[%emt 0:01:35]} c6 {[%emt 0:06:04] ...d5 is the strong threat.} 10. Qe2 {[%emt 0:03:21] Hoping for Bxd6.} (10. Qe6 $2 Ne5 $1 {[%mdl 512]} 11. dxe5 Bxe6 $19) (10. Bxd6 $2 Nf6 11. Qxe7+ Qxe7 12. Bxe7 Kxe7 $19) 10... d5 {[%emt 0:00:33]} 11. Bd3 {[%emt 0:02:02]} O-O {[%emt 0:00:17]} 12. Bg3 {[%emt 0:12:23]} Qb6 {[%emt 0:05:53]} 13. Nf3 {[%emt 0:01:58]} Rxf3 {[%emt 0:03:29]} 14. Qxf3 {[%emt 0:05:19]} Qxd4 {[%emt 0:00:30]} 15. c3 $36 {[%emt 0:00:22][%mdl 2048] White is on the roll. Active counter play!} Qc5 {[%emt 0:05:40]} 16. Bc2 {[%emt 0:04:24]} e5 $1 {[%emt 0:05:19]} 17. Qg4 {[%emt 0:04:05]} (17. Rhe1 $14) 17... Qf8 {[%emt 0:04:10]} 18. Kb1 {[%emt 0:02:21]} Nb6 $1 {[%emt 0:09:47]} 19. Qe2 {[%emt 0:01:33]} Nc4 {[%emt 0:34:30]} 20. Rhe1 {[%emt 0:02:52]} b5 {[%emt 0:00:00]} 21. Bd3 {[%emt 0:04:03]} (21. Bb3 $11) 21... Bf5 $15 {[%emt 0:00:00]} 22. Bxf5 {[%emt 0:19:08]} ({White should try} 22. f3 $1 $15) 22... Qxf5+ {[%emt 0:00:00]} (22... gxf5 $17 23. a3 a5) 23. Qc2 $11 {[%emt 0:00:44] And now Qxf5 would win.} Qf8 {[%emt 0:00:00]} 24. Re2 {[%emt 0:03:38]} (24. f3 $11) 24... a5 {[%emt 0:00:00]} (24... e4 $1 $17) 25. f3 {[%emt 0:00:48]} b4 {[%emt 0:00:00]} 26. cxb4 {[%emt 0:01:24]} axb4 {[%emt 0:00:00][%cal Oe5e4]} 27. Qb3 {[%emt 0:02:07]} Qc5 {[%emt 0:00:00]} 28. Be1 {[%emt 0:01:39]} Rb8 {[%emt 0:00:00]} (28... Bf8 $11) 29. a4 {[%emt 0:03:29]} (29. a3 $14) 29... Qa7 {[%emt 0:00:00][%cal Oc4a3][%mdl 1024] Black has compensation.} 30. Bg3 {[%emt 0:04:43]} ({Avoid the trap} 30. Bxb4 $2 Bf8 31. Qxc4 dxc4 $19) (30. Rc1 $11) 30... Qa6 {[%emt 0:00:00]} ({Better is} 30... Rb7 $15) 31. Rde1 {[%emt 0:02:17] [#]} (31. Rc2 $1 $11) 31... Rb7 $1 $17 {[%emt 0:00:00]} 32. h4 {[%emt 0:00:59]} Na5 $2 {[%emt 0:00:00] [#]} (32... c5 $17 {keeps the pressure on.}) 33. Qd1 $1 $16 {[%emt 0:00:55]} b3 $2 {[%emt 0:00:00]} (33... Nc4 $16 {was necessary.} 34. b3 (34. Bxe5 Nxe5 35. Rxe5 Bxe5 $15) 34... Na3+ 35. Kc1 (35. Ka2 Nb5 $17) 35... e4) 34. Bxe5 $18 {[%emt 0:00:23]} Rb4 $2 {[%emt 0:04:28]} (34... Bxe5 35. Rxe5 Qc4) 35. Bd6 {[%emt 0:13:04] Weighted Error Value: White=0.33/Black=0.39} 1-0

[Event "Charlotte GM-A May 2022"]
[Site "Charlotte"]
[Date "2022.05.07"]
[Round "5.4"]
[White "Ostrovskiy, Aleksandr"]
[Black "Spicha, K. Alexander"]
[Result "1/2-1/2"]
[ECO "B48"]
[WhiteElo "2397"]
[BlackElo "2083"]
[Annotator "TA"]
[PlyCount "53"]
[EventDate "2022.05.04"]
[EventType "tourn"]
[EventCountry "USA"]
[SourceTitle "playchess.com"]
[Source "ChessBase"]
[SourceQuality "1"]
[TimeControl "5400+30"]

{[%evp 11,53,32,35,0,0,0,0,0,0,0,0,0,0,0,0,0,0,0,0,0,12,-5,12,14,12,12,12,-54,-59,-38,0,0,0,0,0,0,0,-36,0,0,0,0,-20,-25]} 1. e4 {[%emt 0:00:56]} c5 {[%emt 0:00:11]} 2. Nf3 {[%emt 0:00:18]} e6 {[%emt 0:00:08]} 3. d4 {[%emt 0:00:47]} cxd4 {[%emt 0:00:07]} 4. Nxd4 {[%emt 0:00:02]} Nc6 {[%emt 1:32:04]} 5. Nc3 {[%emt 0:00:17]} Qc7 {[%emt 0:00:00]} 6. Be3 {[%emt 0:00:27]} a6 {[%emt 0:00:00]} 7. g4 {[%emt 0:01:29] B48: Sicilian: Taimanov: 5 Nc3 Qc7 6 Be3 a6 without Be2.} b5 {[%emt 0:00:00][%cal Bb7b5,Bb5b4][%mdl 32]} 8. Nxc6 {[%emt 0:00:36]} Qxc6 {[%emt 0:00:00]} 9. Qd2 {[%emt 0:00:35]} b4 {[%emt 0:00:00]} 10. Ne2 {[%emt 0:00:20]} Qxe4 {[%emt 0:00:00]} 11. Rg1 {[%emt 0:00:06]} Qc4 {[%emt 0:00:00]} 12. Nf4 {[%emt 0:04:48]} Qc7 {[%emt 0:00:00]} 13. O-O-O {[%emt 0:00:06]} Nf6 {[%emt 0:00:00]} 14. Nh5 {[%emt 0:03:37]} Nxh5 {[%emt 0:00:00]} (14... Qxh2 $2 15. Bg2 Nxg4 16. Bxa8 Nxe3 17. fxe3 (17. Nxg7+ Bxg7 18. fxe3 Qxd2+ 19. Rxd2 Bh6 $11) 17... Qxd2+ 18. Kxd2 $18) 15. gxh5 {[%emt 0:00:22]} Bb7 {[%emt 0:00:00]} (15... Qxh2 $2 16. Bg2 Qb8 17. Bf4 $18 (17. Bxa8 Qxa8 18. h6 g6 $16)) 16. Bf4 {[%emt 0:17:37][%mdl 1024] White has compensation.} Qc6 {[%emt 0:00:00]} 17. Be5 {[%emt 0:05:29]} Rg8 $1 {[%emt 0:00:00]} 18. Bd3 {[%emt 0:24:52] [#]} Qd5 $146 {[%emt 0:00:00]} ({Predecessor:} 18... f5 19. Kb1 a5 20. h6 g6 21. h4 Ba6 22. Bf4 Bxd3 23. Qxd3 Be7 24. Bg5 Bxg5 25. hxg5 {1-0 (39) Ali Marandi,C (2542)-Maiti,M (2395) Charlotte 2021}) 19. Kb1 {[%emt 0:08:41]} Qxe5 $15 {[%emt 0:00:00]} 20. Bxh7 {[%emt 0:01:52][%csl Gd1][%cal Rd2d7][%mdl 64] [#] Discovered Attack} Bc6 {[%emt 0:00:00]} 21. Rg5 $1 {[%emt 0:12:23]} ({Reject} 21. Bxg8 Qxh5 22. Qd3 Qh8 $17) 21... Qxh2 {[%emt 0:00:00] Strongly threatening ...Rh8.} 22. Bxg8 {[%emt 0:00:08]} f6 $1 {[%emt 0:00:00]} 23. Rgg1 {[%emt 0:05:41]} Qxh5 {[%emt 0:00:00] aiming for ...Qh8.} 24. Rh1 {[%emt 0:06:01]} Qxh1 {[%emt 0:00:00]} (24... Qd5 $5 {[%cal Rd5d2]} 25. Qf4 Qe5 $11) 25. Rxh1 {[%emt 0:00:05] The position is equal.} Bxh1 {[%emt 0:00:00]} 26. Bh7 {[%emt 0:00:15] Against Be4} Bc6 {[%emt 0:00:00]} 27. Bg6+ {[%emt 0:01:58] Weighted Error Value: White=0.11 (very precise) /Black=0.05 (flawless)} 1/2-1/2

[Event "Charlotte GM-A May 2022"]
[Site "Charlotte"]
[Date "2022.05.07"]
[Round "6.2"]
[White "Spicha, K. Alexander"]
[Black "Belous, Vladimir"]
[Result "1/2-1/2"]
[WhiteElo "2083"]
[BlackElo "2525"]
[Annotator "TA"]
[PlyCount "38"]
[EventDate "2022.05.04"]
[EventType "tourn"]
[EventCountry "USA"]
[SourceTitle "playchess.com"]
[Source "ChessBase"]
[SourceQuality "1"]
[TimeControl "5400+30"]

{[%evp 14,15,12,9]} 1. d4 {[%emt 0:00:09]} Nf6 {[%emt 0:00:11]} 2. Nf3 {[%emt 0:00:05]} g6 {[%emt 0:00:03]} 3. c4 {[%emt 0:00:05]} Bg7 {[%emt 0:00:03]} 4. Nc3 {[%emt 0:00:09]} O-O {[%emt 0:00:04]} 5. e4 {[%emt 0:00:04]} d6 {[%emt 0:00:03]} 6. Be2 {[%emt 0:00:06]} e5 {[%emt 0:00:05]} 7. dxe5 {[%emt 0:00:04]} dxe5 {[%emt 0:00:03]} 8. Qxd8 {[%emt 0:00:06] [#]} ({Don't play} 8. Nxe5 Qxd1+ 9. Bxd1 {[#]} Nxe4 $1 10. Nxe4 Bxe5 $15) {Predecessor:} 8... Rxd8 $146 {E92: King's Indian: Classical: 6 Be2 e5: 7 dxe5, 7 Be3 and Petrosian System without 7...Nbd7.} 9. Bg5 Na6 10. Nd5 Rd6 11. Bxf6 Bxf6 12. O-O-O Bg4 13. b4 c6 14. c5 cxd5 15. cxd6 dxe4 16. Ng1 Bxe2 17. Nxe2 Nxb4 18. Kb1 Nd3 19. Rhf1 Rd8 {1-0 (86) Karjakin,S (2743)-Firouzja,A (2804) Warsaw 2021} 1/2-1/2